[Event "88th Tata Steel Masters 2026"]
[White "Aravindh,Chithambaram VR."]
[Black "Nguyen,Thai Dai Van"]
[Site "Wijk aan Zee"]
[Round "10.1"]
[Annotator "TA"]
[Result "1-0"]
[Date "2026.01.28"]
[WhiteElo "2700"]
[BlackElo "2656"]
[PlyCount "167"]
[TimeControl "60"]

{[%evp 13,167,26,30,27,21,17,24,5,21,13,30,21,34,28,38,37,47,34,37,39,39,41,37,37,43,25,25,20,18,9,10,3,8,9,10,-12,-12,-12,-12,-30,-18,-25,-20,-20,-15,-16,-8,-8,-8,-8,-8,-8,-8,-25,0,-16,-16,-16,-16,-16,-16,-16,-16,-16,-16,-16,-16,-16,-16,-18,-18,-18,-18,-22,-21,-18,-18,-20,0,-21,-15,-15,-15,-15,-15,-15,-15,-15,-15,-15,0,-17,-21,-19,-21,-22,-22,-22,-22,-22,-22,-22,0,-22,-22,-22,0,-27,0,-96,-96,-91,-91,-96,0,-83,0,-87,-88,-87,-93,-89,-89,-99,-36,-44,-37,-166,-166,-355,-353,-346,-345,-302,-210,-171,-131,-74,-79,-966,0,0,0,0,8,20,356,348,348,348,340,254,481,471,2020,1576]} 1. e4 {[%emt 0:0:0]} e5 {[%emt 0:0:0]} 2. Nf3 {[%emt 0:0:0]} Nf6 {[%emt 0:0:0]} 3. d4 {[%emt 0:0:0]} Nxe4 {[%emt 0:0:0]} 4. Bd3 {[%emt 0:0:0]} d5 {[%emt 0:0:0]} 5. Nxe5 {[%emt 0:0:0]} Nd7 {[%emt 0:0:0]} 6. Nxd7 {[%emt 0:0:0]} Bxd7 {[%emt 0:0:0]} 7. O-O {[%emt 0:0:0]} Be7 {[%emt 0:0:0]} 8. Re1 {[%emt 0:0:0][%cal Yc2c4] C43: Petroff Defence: 3 d4.} O-O {[%emt 0:0:0]} 9. Nd2 {[%emt 0:0:0]} Nf6 {[%emt 0:0:0]} 10. h3 {[%emt 0:0:0] White has an edge.} Re8 {[%emt 0:0:33]} 11. Nf3 {[%emt 0:0:0]} a6 $146 {[%emt 0:1:43]} ({Predecessor:} 11... c5 12. c3 Qb6 13. a4 cxd4 14. a5 Qc7 15. Nxd4 Bc5 16. Rxe8+ Rxe8 17. a6 bxa6 18. Rxa6 {1-0 Carlsen,M (2830)-Abdusattorov,N (2766) Warsaw Superbet Rapid 2024 (5)} )12. c3 {[%emt 0:0:0]} c5 {[%emt 0:12:34]} 13. Bg5 {[%emt 0:0:0]} c4 {[%emt 0:17:38]} 14. Bc2 {[%emt 0:0:8]} Be6 {[%emt 0:5:25]} 15. Re3 {[%emt 0:11:47]} Nd7 {[%emt 0:5:33]} 16. Bxe7 {[%emt 0:7:49]} Qxe7 {[%emt 0:1:7]} 17. Qe2 {[%emt 0:0:44]} Nf8 {[%emt 0:1:34]} 18. Re1 {[%emt 0:0:50]} Qd6 {[%emt 0:3:39]} 19. Ng5 {[%emt 0:6:38]} Bd7 {[%emt 0:20:40]} 20. Qh5 {[%emt 0:1:26][%csl Yf7,Yh7][%cal Rc2h7]} (20. Re7 {simplifies} Qxe7 21. Qxe7 Rxe7 22. Rxe7 Re8 23. Rxe8 Bxe8 24. Nf3 )g6 {[%emt 0:1:58]} 21. Qh6 {[%emt 0:1:36]} Rxe3 {[%emt 0:3:30]} 22. Rxe3 {[%emt 0:1:18]} Re8 {[%emt 0:1:6]} 23. Nf3 {[%emt 0:0:37]} Rxe3 {[%emt 0:1:38]} 24. fxe3 {[%emt 0:1:2]} Qb6 {[%emt 0:5:47]} 25. b4 {[%emt 0:0:37]} a5 {[%emt 0:4:9]} 26. a3 {[%emt 0:0:39]} axb4 {[%emt 0:0:34]} 27. axb4 {[%emt 0:0:46]} Qa6 {[%emt 0:2:5]} 28. Qh4 {[%emt 0:0:42]} Qa1+ {[%emt 0:3:18]} 29. Qe1 {[%emt 0:0:36]} Qb2 {[%emt 0:6:53]} 30. Qd2 {[%emt 0:0:40]} f5 {[%emt 0:2:45]} 31. Bd1 {[%emt 0:0:56]} Qxd2 {[%emt 0:1:17]} 32. Nxd2 $11 {[%emt 0:0:35][%mdl 4096] Endgame KBN-KBN} Ne6 {[%emt 0:1:57]} 33. Kf2 {[%emt 0:1:2]} Kg7 {[%emt 0:1:17]} 34. Nf3 {[%emt 0:0:49]} (34. Bf3 $5 Nc7 $8 35. Bd1 $11 )Nc7 {[%emt 0:1:23]} 35. Ne5 {[%emt 0:1:12]} Be6 {[%emt 0:1:11]} 36. Ba4 {[%emt 0:1:13] Prevents Nb5.} Kf6 {[%emt 0:0:48]} 37. h4 {[%emt 0:1:1]} Na8 {[%emt 0:1:51]} 38. Bd1 {[%emt 0:0:46]} Nb6 {[%emt 0:1:52]} 39. Ke1 {[%emt 0:4:57]} Nc8 {[%emt 0:0:34]} 40. Bc2 {[%emt 0:0:0]} Nd6 {[%emt 0:0:0]} 41. Kd2 {[%emt 0:32:33]} Kg7 {[%emt 0:35:30]} 42. g3 {[%emt 0:0:32]} Kf6 {[%emt 0:4:31]} 43. Nf3 {[%emt 0:5:6]} h6 {[%emt 0:1:35]} 44. Ne5 {[%emt 0:0:37]} Kg7 {[%emt 0:0:51]} 45. Ke2 {[%emt 0:4:33]} Kf6 {[%emt 0:3:52]} 46. Kd2 {[%emt 0:0:7]} g5 {[%emt 0:0:59]} 47. hxg5+ {[%emt 0:0:10]} hxg5 {[%emt 0:0:24]} 48. Ke2 {[%emt 0:1:35]} Bf7 {[%emt 0:1:22]} (48... Nb5 $5 49. Kd2 $8 Nd6 $15 )49. Kd2 {[%emt 0:1:23]} Bh5 {[%emt 0:0:42]} 50. Ke1 {[%emt 0:0:35]} Ke6 {[%emt 0:0:3]} 51. Kd2 {[%emt 0:0:14]} Kf6 {[%emt 0:0:12]} 52. Ke1 {[%emt 0:0:6]} Ke7 {[%emt 0:0:39]} 53. Kd2 {[%emt 0:0:24]} Ke6 {[%emt 0:0:19]} 54. Ke1 {[%emt 0:0:6]} Be8 {[%emt 0:6:38]} 55. Kd2 {[%emt 0:0:35]} Kf6 {[%emt 0:0:4]} 56. Ke1 {[%emt 0:1:50]} Ke7 {[%emt 0:0:3]} 57. Nf3 {[%emt 0:0:35]} Kf6 {[%emt 0:0:31]} 58. Ne5 {[%emt 0:0:5]} Bh5 {[%emt 0:1:50]} 59. Kd2 {[%emt 0:0:22]} Ke6 {[%emt 0:1:50]} 60. Ke1 {[%emt 0:0:44]} Bg4 {[%emt 0:0:17]} 61. Kd2 {[%emt 0:26:6]} (61. Nxg4 $11 fxg4 62. Kd2 )Bh3 $17 {[%emt 0:15:12]} 62. Nf3 {[%emt 0:0:30]} Kf6 {[%emt 0:0:49]} 63. Ne5 {[%emt 0:0:4]} Ke6 {[%emt 0:0:2]} 64. Nf3 $1 {[%emt 0:0:6]} Kf6 {[%emt 0:0:25]} 65. Ne5 {[%emt 0:0:5]} Bg2 {[%emt 0:0:11]} 66. Nd7+ {[%emt 0:0:6]} Ke7 {[%emt 0:0:8]} 67. Nc5 {[%emt 0:0:15]} Bf3 {[%emt 0:0:53]} 68. b5 {[%emt 0:1:8]} Bh5 {[%emt 0:0:52]} (68... Be4 $17 69. Bd1 Nxb5 70. Nxb7 Na3 )69. b6 $15 {[%emt 0:0:47]} Be8 {[%emt 0:0:27]} 70. Ke2 {[%emt 0:1:38]} ({White should play} 70. g4 $15 fxg4 71. Ke1 )g4 $19 {[%emt 0:1:58]} 71. Nxb7 $2 {[%emt 0:17:1] [#]} (71. Kd2 )Nxb7 {[%emt 0:0:1]} 72. Bxf5 {[%emt 0:0:5]} Bd7 {[%emt 0:0:11]} 73. Bh7 {[%emt 0:0:25]} Kd6 {[%emt 0:1:30]} 74. e4 {[%emt 0:0:5]} Be6 {[%emt 0:0:39] Prevents Bg8} 75. Ke3 {[%emt 0:0:17]} (75. e5+ $142 Kc6 76. Ke3 )Kc6 $17 {[%emt 0:0:4]} 76. Bf5 $2 {[%emt 0:1:56][%mdl 8192] [#]} (76. e5 $17 )Bf7 $2 {[%emt 0:0:14]} ({Better is} 76... Bxf5 $19 77. exf5 Kxb6 )77. e5 $11 {[%emt 0:1:18]} Kxb6 {[%emt 0:0:2]} 78. Kf4 {[%emt 0:0:4]} Kc7 {[%emt 0:1:25]} 79. Kg5 {[%emt 0:0:4]} Nd8 $2 {[%emt 0:0:26][%mdl 8192]} (79... Na5 $11 )80. Bxg4 $18 {[%emt 0:1:2]} Be6 {[%emt 0:0:42]} 81. Bd1 {[%emt 0:1:23]} Bh3 {[%emt 0:0:44]} 82. Kf6 {[%emt 0:1:42]} Ne6 $2 {[%emt 0:0:1]} (82... Kd7 {keeps fighting.} 83. Bf3 Ne6 (83... Be6 $2 84. g4 $18 )84. Bxd5 Nd8 85. Bxc4 Ne6 86. Bb5+ Kd8 )83. g4 {[%emt 0:0:7]} Nf4 {[%emt 0:0:34]} (83... Nf8 $142 84. e6 Bf1 (84... Kd6 $2 85. e7 $18 ))84. e6 {[%emt 0:0:4] Weighted Error Value: White=0.03 (flawless) /Black=0.03 (flawless)   Loses game:     	White=1     	Black=1      Missed win:     	---       	Black=1      Mistake:       	White=4     	Black=3      Inaccurate:     	---       	Black=2      OK:         	White=8     	Black=7      Best:        	White=1     	---        Strong:       	White=1     	---} 1-0

[Event "88th Tata Steel Masters 2026"]
[White "Keymer,Vincent"]
[Black "Erigaisi Arjun"]
[Site "Wijk aan Zee"]
[Round "10.2"]
[Annotator "TA"]
[Result "1-0"]
[Date "2026.01.28"]
[WhiteElo "2776"]
[BlackElo "2775"]
[PlyCount "81"]
[TimeControl "60"]

{[%evp 25,80,31,23,0,29,26,64,44,50,43,28,17,74,76,70,95,111,87,105,52,73,25,116,101,212,177,187,180,226,148,192,145,155,135,160,170,212,212,267,238,239,161,272,260,676,710,1285,1278,1275,1280,1268,791,754,710,1093,1078,1080]} 1. e4 {[%emt 0:0:0]} e5 {[%emt 0:0:0]} 2. Nf3 {[%emt 0:0:0]} Nc6 {[%emt 0:0:0]} 3. Bb5 {[%emt 0:0:0]} a6 {[%emt 0:0:0]} 4. Ba4 {[%emt 0:0:0]} Nf6 {[%emt 0:0:0]} 5. O-O {[%emt 0:0:0]} Be7 {[%emt 0:0:0]} 6. d3 {[%emt 0:0:0]} b5 {[%emt 0:0:0]} 7. Bb3 {[%emt 0:0:0]} d6 {[%emt 0:0:0]} 8. c3 {[%emt 0:0:0]} O-O {[%emt 0:0:0]} 9. h3 {[%emt 0:0:0]} Bb7 {[%emt 0:0:0]} 10. Re1 {[%emt 0:0:0]} Na5 {[%emt 0:4:11]} 11. Bc2 {[%emt 0:0:0]} c5 {[%emt 0:0:35]} 12. Nbd2 {[%emt 0:0:0][%cal Yb1d2,Yd2f1,Yf1e3,Ye3f5][%mdl 32]} Qc7 {[%emt 0:3:1]} 13. Nf1 {[%emt 0:0:0]} Rfe8 {[%emt 0:1:2]} 14. Ne3 {[%emt 0:8:53] C92: Closed Ruy Lopez: 9...Be6, Karpov and Flohr-Zaitsev Variations.} h6 {[%emt 0:11:6]} 15. Nh2 {[%emt 0:4:27]} c4 $146 {[%emt 0:16:15]} ({Predecessor:} 15... Nc6 16. Nhg4 Nd8 17. Qf3 Nxg4 18. hxg4 Ne6 {½-½ Podolsky,H-Lachut,J POL-ch Katowice 1961 (7)} )16. Qf3 {[%emt 0:17:24] White is slightly better.} cxd3 {[%emt 0:20:0]} 17. Bxd3 {[%emt 0:0:55]} h5 {[%emt 0:1:35]} 18. Nf5 {[%emt 0:4:38]} g6 {[%emt 0:3:35]} (18... Bd8 $1 $11 )19. Nxe7+ $16 {[%emt 0:8:49]} Qxe7 {[%emt 0:1:49]} 20. Bg5 {[%emt 0:1:3]} Kg7 {[%emt 0:0:35]} 21. Rad1 {[%emt 0:25:12]} Qe6 {[%emt 0:2:49]} 22. Bb1 {[%emt 0:0:47]} (22. b3 $16 )Rad8 {[%emt 0:8:6][%cal Ya8d8,Yd8d7,Yd7e7,Ye7e6][%mdl 32]} 23. Qg3 {[%emt 0:8:52]} (23. b3 $16 )Nc4 {[%emt 0:8:15]} (23... d5 $11 {keeps the balance.} )24. b3 {[%emt 0:2:6]} Nb6 {[%emt 0:0:35]} (24... Na3 $16 )25. f4 $18 {[%emt 0:1:56]} exf4 {[%emt 0:6:10]} 26. Qxf4 {[%emt 0:0:31]} Rd7 {[%emt 0:0:47][%cal Rf6e4]} 27. Qf2 {[%emt 0:3:43]} Nh7 {[%emt 0:0:37]} 28. Bf4 {[%emt 0:1:41][%csl Yd6] White attacks a weakness} (28. Be3 $18 Nc8 29. Bd3 )Nc8 $16 {[%emt 0:0:39]} 29. Nf3 {[%emt 0:6:32][%cal Yh2f3,Yf3d4,Yd4f5,Yf5h6][%mdl 32]} Kg8 {[%emt 0:8:17]} 30. Qg3 {[%emt 0:0:0] White is more active.} Rde7 {[%emt 0:1:4]} 31. Nd4 {[%emt 0:0:0]} (31. Bxd6 Nxd6 32. Rxd6 Qc8 $14 )Qf6 {[%emt 0:1:42]} 32. Nf5 {[%emt 0:0:48]} Re6 {[%emt 0:0:36]} 33. Rf1 {[%emt 0:3:7]} (33. Nxd6 Nxd6 34. Bxd6 (34. Rxd6 Rxd6 35. Bxd6 h4 $11 )h4 $17 (34... Bxe4 35. Rxe4 Rxe4 36. Bxe4 $16 ))(33. Bxd6 $2 h4 34. Nxh4 (34. Qxh4 $2 Qxh4 35. Nxh4 Nxd6 $19 )(34. Nh6+ $2 Kg7 $17 )Rxd6 (34... Nxd6 $2 35. Rxd6 Rxd6 36. e5 $17 )35. Rxd6 Qxd6 $19 )h4 {[%emt 0:3:44]} (33... Kh8 {might work better.} )34. Qg4 {[%emt 0:1:57]} (34. Qxh4 $2 {perishes.} gxf5 35. Qg3+ Qg6 36. exf5 Qxg3 37. Bxg3 Re2 $19 )({Less strong is} 34. Nxh4 Bxe4 35. Bh6 Qe5 36. Qxe5 Rxe5 $16 )Qxc3 $2 {[%emt 0:0:58] [#]} (34... Kh8 )35. Bd2 $18 {[%emt 0:1:6] White is clearly winning.} Qb2 {[%emt 0:1:52]} 36. Nh6+ {[%emt 0:0:45]} Kh8 {[%emt 0:0:36]} 37. Nxf7+ {[%emt 0:0:52]} Kg7 {[%emt 0:0:35]} 38. Nd8 {[%emt 0:3:24]} R6e7 {[%emt 0:1:8]} 39. Nxb7 {[%emt 0:0:57]} Rxb7 {[%emt 0:0:36]} 40. Be3 {[%emt 0:0:0]} Nf6 {[%emt 0:0:0]} 41. Qxh4 {[%emt 0:20:19] Weighted Error Value: White=0.44/Black=0.90   Mistake:       	White=3     	Black=5      Inaccurate:     	White=2     	Black=3      OK:         	White=3     	Black=2      Best:        	White=3     	---} 1-0

[Event "88th Tata Steel Masters 2026"]
[White "Sindarov,Javokhir"]
[Black "Van Foreest,Jorden"]
[Site "Wijk aan Zee"]
[Round "10.3"]
[Annotator "TA"]
[Result "1/2-1/2"]
[Date "2026.01.28"]
[WhiteElo "2726"]
[BlackElo "2703"]
[PlyCount "67"]
[TimeControl "60"]

{[%evp 9,66,20,25,17,14,16,24,16,39,4,41,-7,-7,-9,-6,-19,0,0,0,0,0,0,0,0,1,2,0,0,0,0,0,0,0,0,0,0,0,0,0,0,0,0,0,0,0,0,0,0,0,0,0,0,0,0,0,0,0,0,0]} 1. d4 {[%emt 0:0:0]} d5 {[%emt 0:0:0]} 2. c4 {[%emt 0:0:0]} e6 {[%emt 0:0:0]} 3. Nc3 {[%emt 0:0:0]} a6 {[%emt 0:0:0]} 4. cxd5 {[%emt 0:0:0]} exd5 {[%emt 0:0:0]} 5. Nf3 {[%emt 0:0:0]} c6 {[%emt 0:0:0]} 6. e4 {[%emt 0:0:0] D31: Queen's Gambit Declined: Semi-Slav without ...Nf6 (+ Marshall Gambit and Noteboom) and Exchange Variation lines without ...Nf6.} dxe4 {[%emt 0:0:0]} 7. Ng5 {[%emt 0:0:0]} h6 {[%emt 0:0:0]} 8. Ngxe4 {[%emt 0:0:46] White has an edge.} Be6 {[%emt 0:0:0] Prevents Bc4} 9. Bf4 $146 {[%emt 0:2:10]} ({Predecessor:} 9. Be2 Nf6 10. O-O Nbd7 11. Bf4 Nxe4 12. Nxe4 Nf6 13. Nxf6+ gxf6 14. Bf3 Bd6 15. Qd2 {½-½ Tilicheev,V (2525)-Vallejo Pons,F (2687) GRE-chT 47th 2019 (5.6)} )Nd7 {[%emt 0:0:48]} 10. d5 {[%emt 0:10:34]} (10. Be2 $14 {is superior.} )cxd5 $11 {[%emt 0:1:7] The position is equal.} 11. Nxd5 {[%emt 0:1:5]} Qa5+ {[%emt 0:14:0]} 12. Ndc3 {[%emt 0:5:48]} Ngf6 {[%emt 0:3:10]} 13. Nd6+ {[%emt 0:3:52]} Bxd6 {[%emt 0:0:37]} 14. Bxd6 {[%emt 0:0:35]} Nc5 {[%emt 0:10:36]} 15. Bb5+ {[%emt 0:9:55]} axb5 {[%emt 0:0:38]} 16. Bxc5 {[%emt 0:0:33]} Ne4 {[%emt 0:8:5] Wards off Qd6} 17. Qd4 {[%emt 0:6:11][%csl Ye4,Yg7] A sharp opening} Nxc5 {[%emt 0:0:40]} 18. Qxc5 {[%emt 0:0:35]} Rc8 {[%emt 0:7:6][%cal Ya8c8,Yc8c2,Yc2b2][%mdl 32]} 19. Qxb5+ {[%emt 0:1:6]} Qxb5 {[%emt 0:0:36]} 20. Nxb5 {[%emt 0:0:36]} Rc2 {[%emt 0:3:10]} 21. b3 {[%emt 0:0:58]} O-O {[%emt 0:2:5]} 22. Nd4 {[%emt 0:0:59]} Rb2 {[%emt 0:0:44]} 23. O-O {[%emt 0:0:45]} Ra8 {[%emt 0:1:19]} 24. Nxe6 {[%emt 0:1:1]} fxe6 {[%emt 0:0:39]} 25. g3 {[%emt 0:0:46]} Raxa2 {[%emt 0:1:13]} 26. Rxa2 {[%emt 0:0:33]} Rxa2 {[%emt 0:0:36][%mdl 4096] Endgame KR-KR} 27. Re1 {[%emt 0:0:37]} Rb2 {[%emt 0:0:57]} 28. Rxe6 {[%emt 0:0:41]} Rxb3 {[%emt 0:0:36]} 29. Kg2 {[%emt 0:0:37]} Kf7 {[%emt 0:0:40]} 30. Rd6 {[%emt 0:0:33]} Ke7 {[%emt 0:0:38]} 31. Rg6 {[%emt 0:0:34]} Kf7 {[%emt 0:0:34]} 32. Rd6 {[%emt 0:0:38]} Ke7 {[%emt 0:0:35]} 33. Rg6 {[%emt 0:0:36]} Kf7 {[%emt 0:0:34]} 34. Rd6 {[%emt 0:0:36] An interesting draw.   Weighted Error Value: White=0.04 (flawless) /Black=0.04 (flawless)   Mistake:       	White=1     	---        Inaccurate:     	White=1     	Black=1      OK:         	White=8     	Black=3} 1/2-1/2

[Event "88th Tata Steel Masters 2026"]
[White "Erdogmus,Yagiz Kaan"]
[Black "Gukesh D"]
[Site "Wijk aan Zee"]
[Round "10.4"]
[Annotator "TA"]
[Result "0-1"]
[Date "2026.01.28"]
[WhiteElo "2658"]
[BlackElo "2754"]
[PlyCount "100"]
[TimeControl "60"]

{[%evp 12,100,11,0,11,9,6,10,19,8,7,8,8,8,8,0,0,0,2,0,0,0,14,0,0,0,0,0,0,0,0,-27,-13,-11,-19,-26,-9,-37,-10,-2,30,29,27,27,145,-93,-94,-94,-96,-98,-95,-98,-97,-100,-102,-101,-89,-89,-88,-89,-89,-93,-91,-103,-95,-99,-97,-97,-93,-87,-87,-159,-154,-155,-135,-198,-210,-271,-278,-332,-339,-605,-601,-434,-504,-592,-598,-543,-512,-447,-345]} 1. e4 {[%emt 0:0:0]} e5 {[%emt 0:0:0]} 2. Nf3 {[%emt 0:0:0]} Nc6 {[%emt 0:0:0]} 3. Nc3 {[%emt 0:0:0]} Nf6 {[%emt 0:0:0]} 4. Bb5 {[%emt 0:0:0]} Bb4 {[%emt 0:0:0]} 5. O-O {[%emt 0:0:0]} O-O {[%emt 0:0:0]} 6. Nd5 {[%emt 0:0:0]} Nxd5 {[%emt 0:0:30]} 7. exd5 {[%emt 0:0:0]} e4 {[%emt 0:5:35] C49: Four Knights: 4 Bb5 Bb4.} 8. Ne1 {[%emt 0:0:0][%cal Yc2c3] And now c3! would win.} Nd4 {[%emt 0:4:40]} 9. a4 {[%emt 0:0:0]} Nxb5 $146 {[%emt 0:3:29] The position is equal.} ({Predecessor:} 9... Qh4 10. c3 Nxb5 11. cxb4 Nd4 12. d3 d6 13. dxe4 Qxe4 14. f3 Qxd5 15. Nc2 c5 16. Be3 Qb3 17. Bxd4 cxd4 18. Ra3 Qxb2 19. Qd3 Bf5 {0-1 Rychlik,M (1929)-Majek,K (2127) Polanica Zdroj op-A 61st 2025 (2)} )10. axb5 {[%emt 0:0:0]} c6 {[%emt 0:3:35]} 11. c3 {[%emt 0:38:14]} Bc5 {[%emt 0:15:58]} 12. d3 {[%emt 0:31:46]} cxd5 {[%emt 0:0:36]} 13. Qb3 {[%emt 0:6:32]} d6 {[%emt 0:4:43]} 14. Qxd5 {[%emt 0:3:53]} Re8 {[%emt 0:8:1]} 15. dxe4 {[%emt 0:2:54]} Be6 {[%emt 0:2:54]} 16. Qd3 {[%emt 0:1:52]} (16. Qxb7 $2 Rb8 17. Qa6 Bc4 $19 )Qc7 {[%emt 0:0:36]} 17. Be3 {[%emt 0:2:44]} Bxe3 {[%emt 0:6:3]} 18. Qxe3 {[%emt 0:0:31][%cal Ye1c2]} Bc4 {[%emt 0:0:37][%csl Yb5,Yf1]} 19. Nd3 {[%emt 0:0:32]} Bxb5 {[%emt 0:13:58]} 20. Rfe1 {[%emt 0:3:6]} d5 {[%emt 0:3:47]} 21. Qc5 {[%emt 0:3:9]} Qd7 {[%emt 0:7:17]} 22. Nb4 {[%emt 0:4:13]} dxe4 {[%emt 0:0:54]} 23. c4 {[%emt 0:1:38]} (23. Red1 {with more complications.} b6 24. Qd5 a5 25. c4 )Ba4 {[%emt 0:1:46] Repels Red1} 24. Qa5 {[%emt 0:2:9]} Bb3 {[%emt 0:13:46]} 25. Nd5 {[%emt 0:0:45]} Bxc4 {[%emt 0:3:0]} 26. Nb6 {[%emt 0:0:36]} axb6 {[%emt 0:0:33]} 27. Qxa8 {[%emt 0:0:33]} Ba6 {[%emt 0:0:38] [#]} (27... Qc6 $11 {remains equal.} )28. Rxa6 $2 {[%emt 0:3:36]} bxa6 $17 {[%emt 0:0:38]} 29. Qxa6 $16 {[%emt 0:0:32][%mdl 4096] Endgame KQR-KQR. Black is a pawn up.} Qd4 {[%emt 0:0:53]} 30. Qb5 {[%emt 0:1:17]} Re5 {[%emt 0:0:52]} 31. Qb3 {[%emt 0:0:42]} g6 {[%emt 0:2:27]} 32. Qc3 {[%emt 0:1:10]} Qxc3 {[%emt 0:1:15]} 33. bxc3 $17 {[%emt 0:0:31] KR-KR. Black is a pawn up.} Re6 {[%emt 0:3:52]} 34. Kf1 {[%emt 0:1:26]} f5 {[%emt 0:1:6]} 35. f3 {[%emt 0:2:6]} Kf7 {[%emt 0:0:31]} 36. fxe4 {[%emt 0:0:34]} Rxe4 {[%emt 0:0:42]} 37. Rb1 {[%emt 0:0:31]} Re6 {[%emt 0:0:35]} 38. c4 {[%emt 0:0:46]} Ke7 {[%emt 0:1:19]} 39. Rb5 {[%emt 0:0:32]} Rc6 {[%emt 0:1:1]} 40. Ke2 {[%emt 0:0:0]} Kd7 {[%emt 0:0:0]} 41. Kf3 {[%emt 0:38:26]} ({Better is} 41. Kd3 )Kc7 {[%emt 0:21:13]} 42. Rb4 {[%emt 0:0:40]} Rd6 {[%emt 0:2:53]} 43. Ra4 {[%emt 0:6:42]} (43. Ke3 $17 )Kc6 $19 {[%emt 0:1:59]} 44. Ra8 {[%emt 0:0:43]} Kc5 {[%emt 0:2:40]} 45. Ra7 {[%emt 0:3:32]} h5 {[%emt 0:1:10]} 46. Rc7+ $2 {[%emt 0:1:47]} (46. Ra6 )Rc6 {[%emt 0:1:33] Black is clearly winning.} 47. Rd7 {[%emt 0:1:4]} Kxc4 {[%emt 0:0:12]} 48. Rd1 {[%emt 0:0:3]} b5 {[%emt 0:0:40]} 49. Rc1+ {[%emt 0:0:7]} Kd5 {[%emt 0:0:4]} 50. Rd1+ {[%emt 0:0:5]} Ke5 {[%emt 0:0:17] Weighted Error Value: White=0.22 (precise) /Black=0.10 (very precise)   Mistake:       	White=4     	Black=1      Inaccurate:     	White=2     	Black=2      OK:         	White=3     	Black=10     Best:        	White=1     	Black=1} 0-1

[Event "88th Tata Steel Masters 2026"]
[White "Abdusattorov,Nodirbek"]
[Black "Fedoseev,Vladimir"]
[Site "Wijk aan Zee"]
[Round "10.5"]
[Annotator "TA"]
[Result "1/2-1/2"]
[Date "2026.01.28"]
[WhiteElo "2751"]
[BlackElo "2705"]
[PlyCount "108"]
[TimeControl "60"]

{[%evp 16,108,41,19,30,30,31,25,30,30,31,31,45,0,8,4,14,0,0,-6,0,0,0,-45,-29,-24,-20,-165,-141,-183,-187,-214,-190,-183,-209,-217,-58,-54,0,0,0,0,27,0,0,0,0,0,0,0,49,48,22,29,75,0,0,0,0,0,0,0,0,0,0,0,0,0,0,0,0,0,0,0,0,0,0,0,15,11,37,0,0,0,0,0,0,0,0,0,0,0,0,0,0]} 1. e4 {[%emt 0:0:0]} e5 {[%emt 0:0:0]} 2. Nf3 {[%emt 0:0:0]} Nf6 {[%emt 0:0:0]} 3. Nxe5 {[%emt 0:0:0]} d6 {[%emt 0:0:0]} 4. Nf3 {[%emt 0:0:0]} Nxe4 {[%emt 0:0:0]} 5. d4 {[%emt 0:0:0]} d5 {[%emt 0:0:0]} 6. Bd3 {[%emt 0:0:0]} Bd6 {[%emt 0:0:0]} 7. O-O {[%emt 0:0:0]} O-O {[%emt 0:0:0]} 8. c4 {[%emt 0:0:0]} c6 {[%emt 0:0:0]} 9. Qc2 {[%emt 0:0:0]} Nd7 {[%emt 0:0:0] C42: Petroff Defence: 3 Nxe5 and unusual White 3rd moves.} 10. Nc3 {[%emt 0:0:0]} Ndf6 {[%emt 0:0:0]} 11. Re1 {[%emt 0:0:0][%cal Rc3e4]} Be6 $146 {[%emt 0:4:29] White has an edge.} ({Predecessor:} 11... Nxc3 12. bxc3 h6 13. Ne5 Be6 14. c5 Bc7 15. Bf4 Nd7 16. Qd2 Nxe5 17. Bxe5 b6 {½-½ Khripachenko,A (2259)-Timofeev,A (2576) RUS-ch Blitz 2023 (13)} )12. c5 {[%emt 0:0:0]} Bc7 {[%emt 0:3:25]} 13. Ne5 {[%emt 0:0:0]} Re8 {[%emt 0:6:58]} 14. h3 {[%emt 0:10:33]} g6 {[%emt 0:5:35]} 15. Bh6 {[%emt 0:7:26]} Bf5 {[%emt 0:5:33]} 16. g4 {[%emt 0:8:37]} Be6 {[%emt 0:8:14]} 17. f3 {[%emt 0:20:27]} Bxe5 {[%emt 0:14:33]} 18. dxe5 {[%emt 0:0:50]} Nxc5 {[%emt 0:0:35]} 19. Bg5 {[%emt 0:8:58]} Nxd3 {[%emt 0:2:14]} 20. Qxd3 {[%emt 0:7:42]} Qb6+ {[%emt 0:0:38]} 21. Kg2 {[%emt 0:3:5]} (21. Be3 $11 Qc7 22. Bg5 (22. exf6 $2 Qg3+ 23. Kh1 Qxh3+ 24. Kg1 Qg3+ 25. Kh1 Qxf3+ 26. Kh2 Bxg4 $19 ))Qxb2+ $19 {[%emt 0:6:13]} 22. Re2 {[%emt 0:11:5]} Qxa1 {[%emt 0:0:39]} 23. Qd2 {[%emt 0:0:43]} Nd7 {[%emt 0:4:12]} 24. Re1 {[%emt 0:1:56] [#]} Qxe1 {[%emt 0:0:44]} 25. Qxe1 {[%emt 0:0:31] [#]} f6 $2 {[%emt 0:8:46]} 26. exf6 $15 {[%emt 0:0:41] [#]} Bxg4 {[%emt 0:0:52]} 27. Qb1 $36 {[%emt 0:1:14][%mdl 2048] Black is under pressure.} Be6 {[%emt 0:5:3]} 28. Qxb7 {[%emt 0:0:32]} Kf7 {[%emt 0:3:9][%cal Yh7h6]} 29. Kg3 {[%emt 0:3:23][%mdl 1024] White has compensation.} (29. Qxc6 $2 Rac8 (29... Nxf6 $2 30. Nb5 $18 )30. Qb7 Rxc3 $19 )h6 {[%emt 0:1:49]} 30. Bf4 {[%emt 0:9:7]} g5 {[%emt 0:1:34]} 31. Bc7 {[%emt 0:1:43]} Kg6 {[%emt 0:0:49]} 32. f7 {[%emt 0:1:38]} Bxf7 {[%emt 0:4:26]} (32... Kxf7 $11 {deserves consideration.} 33. Qxc6 a6 )33. Qxc6+ $14 {[%emt 0:0:34]} Nf6 {[%emt 0:0:36]} 34. Nb5 {[%emt 0:4:7]} a6 {[%emt 0:7:28]} (34... Be6 $11 )35. Nd6 {[%emt 0:2:25] White has more active pieces.} (35. Nd4 $16 Rac8 36. Qb7 )Re2 $1 $11 {[%emt 0:5:43] ( -> ...Nh5+)} 36. Nxf7 {[%emt 0:0:45]} ({Weaker is} 36. Qxa8 Nh5+ 37. Kg4 Rg2# )Ra7 {[%emt 0:0:50]} 37. f4 {[%emt 0:6:34]} Kxf7 {[%emt 0:6:22]} 38. Qb6 {[%emt 0:0:30] Some like it hot} Ra8 {[%emt 0:0:57]} 39. Bd8 {[%emt 0:2:29]} gxf4+ {[%emt 0:5:16]} 40. Kxf4 {[%emt 0:0:0]} Nd7 {[%emt 0:0:0]} 41. Qc7 {[%emt 0:25:30]} Re4+ {[%emt 0:24:56]} 42. Kg3 {[%emt 0:2:2]} Ke8 {[%emt 0:1:14]} 43. Bh4 {[%emt 0:0:9]} Re6 {[%emt 0:0:8] Inhibits Qc6.} 44. Qb7 {[%emt 0:2:43][%csl Ya8,Yd5]} Rb8 {[%emt 0:0:9]} 45. Qxd5 {[%emt 0:0:6]} Nf8 {[%emt 0:1:26]} 46. Bf6 {[%emt 0:5:9]} Kf7 {[%emt 0:1:37]} 47. Bd4 {[%emt 0:2:21]} Rbe8 {[%emt 0:6:25]} 48. a4 {[%emt 0:0:5]} Nh7 {[%emt 0:0:48] The position is equal.} 49. a5 {[%emt 0:2:38]} Nf6 {[%emt 0:1:16]} 50. Qc4 {[%emt 0:2:11]} Rg8+ {[%emt 0:2:22]} 51. Kh2 {[%emt 0:0:10]} Rg5 {[%emt 0:0:52]} 52. Qc7+ {[%emt 0:0:22]} Kg6 {[%emt 0:0:52]} 53. Qc2+ {[%emt 0:0:12]} Kf7 {[%emt 0:1:2]} 54. Qc7+ {[%emt 0:0:6]} Kg6 {[%emt 0:0:5] Weighted Error Value: White=0.14 (very precise) /Black=0.09 (flawless)   Mistake:       	White=2     	Black=4      Inaccurate:     	White=4     	Black=2      OK:         	White=13    	Black=14     Best:        	White=3     	Black=2      Strong:       	---       	Black=1      Brilliant:      	---       	Black=1} 1/2-1/2